fUSD/lending_fUSD_20260219
["ID","MTS","AMOUNT","RATE_DAILY","PERIOD"]
[405997525,1771516233082,-179.8267817,0.00017989,2]
[405997527,1771516233092,-4752.1704099,0.00017989,2]
[405997528,1771516233105,-1895.8721208,0.00017989,2]
[405997529,1771516233115,-2593.8983554,0.00017989,2]
[405997530,1771516233125,-1062.34374872,0.00017999,5]
[405997531,1771516233136,-1062.34374872,0.00017999,5]
[405997532,1771516233147,-1062.34374872,0.00017999,5]
[405997533,1771516233157,-1062.34374872,0.00017999,5]
[405997534,1771516233167,-300.0,0.00017999,2]
[405997535,1771516233176,-500.0,0.00017999,2]
[405997536,1771516233186,-304.62895111,0.00017999,2]
[405997537,1771516233195,-335.4,0.00017999,2]
[405997538,1771516233207,-150.0,0.00017999,2]
[405997539,1771516233217,-352.57568535,0.00017999,2]
[405997540,1771516233226,-267.72212936,0.00017999,2]
[405997541,1771516233237,-596.70738627,0.00017999,2]
[405997542,1771516233246,-500.0,0.00017999,2]
[405997543,1771516233256,-500.0,0.00017999,2]
[405997544,1771516233265,-500.0,0.00017999,2]
[405997545,1771516233275,-500.0,0.00017999,2]
[405997546,1771516233284,-500.0,0.00017999,2]
[405997547,1771516233296,-500.0,0.00017999,2]
[405997548,1771516233305,-500.0,0.00017999,2]
[405997549,1771516233314,-500.0,0.00017999,2]
[405997550,1771516233324,-500.0,0.00017999,2]
[405997551,1771516233334,-500.0,0.00017999,2]
[405997552,1771516233343,-489.85150288,0.00017999,2]
[405997553,1771516233352,-500.0,0.00017999,2]
[405997554,1771516233362,-500.0,0.00017999,2]
[405997555,1771516233371,-500.0,0.00017999,2]
[405997556,1771516233381,-500.0,0.00017999,2]
[405997557,1771516233390,-500.0,0.00017999,2]
[405997558,1771516233399,-392.89605202,0.00017999,2]
[405997559,1771516233409,-500.0,0.00017999,2]
[405997560,1771516233419,-500.0,0.00017999,2]
[405997561,1771516233428,-500.0,0.00017999,2]
[405997562,1771516233438,-500.0,0.00017999,2]
[405997563,1771516233447,-500.0,0.00017999,2]
[405997564,1771516233460,-500.0,0.00017999,2]
[405997565,1771516233470,-250.0,0.00017999,2]
[405997566,1771516233480,-500.0,0.00017999,2]
[405997567,1771516233491,-690038.3271239,0.00018,2]
[405997568,1771516233660,-58537.59034913,0.00018,2]
[405997569,1771516233672,-105354.19668405,0.00018,2]
[405997570,1771516233684,-127411.56449685,0.00018,2]
[405997571,1771516233693,-48871.76702806,0.00018,2]
[405997572,1771516233706,-1254.41808677,0.00018,2]
[405997573,1771516233717,-348.4242,0.00018,2]
[405997574,1771516233728,-914.3013,0.00018,2]
[405997575,1771516233742,-667.54860835,0.00018,2]
[405997577,1771516238229,-1377.00927173,0.000179,2]
[405997579,1771516238243,-77.97322238,0.000179,2]
[405997580,1771516238254,-4220.557795,0.0001791,2]
[405997582,1771516238264,-1188.090354,0.00018,2]
[405997584,1771516238277,-289.2021296,0.00018,2]
[405997585,1771516238289,-825.89185212,0.00018,2]
[405997586,1771516238419,-3122.87040922,0.00018,2]
[405997587,1771516238432,-8849.29004784,0.00018,2]
[405997588,1771516238479,-248378.69057512,0.00018,2]
[405997589,1771516238491,-588.0,0.00018,2]
[405997590,1771516240552,-2453.0,0.00012943,2]
[405997591,1771516240561,-251935.33293831,0.00018,2]
[405997592,1771516240574,-57264.5980398,0.00018,2]
[405997593,1771516240734,-1113.29900435,0.00018,2]
[405997594,1771516240746,-68888.0,0.00018,2]
[405997595,1771516240795,-6910.0,0.00018,2]
[405997596,1771516240806,-507.04547635,0.00018,2]
[405997624,1771516246296,-335.4,0.00018,2]
[405997625,1771516247072,-2453.0,0.00015943,2]
[405997626,1771516247082,-864.5,0.00018,2]
[405999028,1771516581505,-961.4469,0.00010294,2]
[405999029,1771516581530,-1200.0,0.00010393,2]
[405999030,1771516581552,-300.0,0.00010393,2]
[405999031,1771516581578,-11960.1177,0.00010394,2]
[405999032,1771516581600,-150.0,0.00010399,2]
[405999033,1771516581621,-2096.7839,0.000104,2]
[405999034,1771516581643,-70820.4597,0.000104,2]
[405999035,1771516643597,669.84094913,0.00015,30]
[405999036,1771516647867,500.0,0.00015,30]
[405999151,1771517431294,-460.51348595,8.7e-05,2]
[405999153,1771517431306,-1487.52828321,8.7e-05,2]
[405999156,1771517431318,-229.73823084,8.7e-05,2]
[405999157,1771517431327,-222.0,8.7e-05,2]
[405999158,1771517431336,-300.0,9.569e-05,2]
[405999159,1771517431346,-1200.0,9.569e-05,2]
[405999160,1771517431358,-250.0,9.57e-05,2]
[405999161,1771517431369,-3599.76375169,9.57e-05,2]
[405999162,1771517431381,-1152.3753,0.00010094,2]
[405999163,1771517431391,-81.7776893,0.00010193,2]
[405999164,1771517431403,-68.2223107,0.00010193,2]
[405999165,1771517431412,-505.88853867,0.000103,2]
[405999166,1771517431423,-2000.0,0.000103,2]
[405999167,1771517431434,-1163.75,0.000103,2]
[405999172,1771517431523,-0.22516591,0.000103,2]
[405999174,1771517431534,-11806.20639542,0.000103,2]
[405999176,1771517431543,-420.0,0.00010526,2]
[405999178,1771517431552,-1680.0,0.00010526,2]
[405999179,1771517431561,-255.0,0.00011202,2]
[405999180,1771517431570,-1278.1228,0.00011223,2]
[405999181,1771517431580,-500.0,0.00011316,2]
[405999182,1771517431589,-500.0,0.00011316,2]
[405999183,1771517431599,-500.0,0.00011316,2]
[405999184,1771517431609,-500.0,0.00011316,2]
[405999185,1771517431618,-200.0,0.00011316,2]
[405999187,1771517431627,-500.0,0.00011316,2]
[405999189,1771517431636,-500.0,0.00011316,2]
[405999191,1771517431645,-500.0,0.00011316,2]
[405999193,1771517431654,-500.0,0.00011316,2]
[405999195,1771517431663,-500.0,0.00011316,2]
[405999197,1771517431672,-500.0,0.00011316,2]
[405999199,1771517431680,-500.0,0.00011316,2]
[405999201,1771517431689,-500.0,0.00011316,2]
[405999203,1771517431698,-500.0,0.00011316,2]
[405999205,1771517431707,-500.0,0.00011316,2]
[405999207,1771517431717,-500.0,0.00011316,2]
[405999208,1771517431726,-500.0,0.00011316,2]
[405999209,1771517431735,-500.0,0.00011316,2]
[405999210,1771517431746,-500.0,0.00011316,2]
[405999211,1771517431755,-500.0,0.00011316,2]
[405999212,1771517431764,-500.0,0.00011316,2]
[405999213,1771517431774,-500.0,0.00011316,2]
[405999214,1771517431783,-500.0,0.00011316,2]
[405999215,1771517431792,-151.0,0.00011316,2]
[405999216,1771517431802,-151.0,0.00011316,2]
[405999217,1771517431811,-151.0,0.00011316,2]
[405999218,1771517431820,-151.0,0.00011316,2]
[405999219,1771517431829,-151.0,0.00011316,2]
[405999220,1771517431839,-151.0,0.00011316,2]
[405999221,1771517431847,-151.0,0.00011316,2]
[405999223,1771517431856,-151.0,0.00011316,2]
[405999225,1771517431865,-151.0,0.00011316,2]
[405999227,1771517431875,-151.0,0.00011316,2]
[405999229,1771517431885,-151.0,0.00011316,2]
[405999231,1771517431894,-200.0,0.00011316,2]
[405999233,1771517431903,-500.0,0.00011316,2]
[405999235,1771517431912,-180.0,0.00011578,2]
[405999237,1771517431922,-2351.0,0.00011578,2]
[405999239,1771517431931,-500.0,0.00011578,2]
[405999241,1771517431941,-500.0,0.00011852,2]
[405999243,1771517431950,-200.0,0.00011864,2]
[405999244,1771517431959,-200.0,0.00011864,2]
[405999245,1771517431968,-500.0,0.00011864,2]
[405999246,1771517431978,-426.0,0.00012313,2]
[405999247,1771517431988,-200.0,0.00012412,2]
[405999248,1771517431997,-200.0,0.00012412,2]
[405999249,1771517432007,-500.0,0.00012412,2]
[405999250,1771517432016,-3292.0,0.00012736,2]
[405999251,1771517432025,-3071.9,0.00012941,2]
[405999252,1771517432034,-617.0,0.00012943,2]
[405999253,1771517432044,-1039.0,0.00012943,2]
[405999254,1771517432054,-1338.0,0.00012943,2]
[405999255,1771517432063,-5974.0,0.00012943,2]
[405999256,1771517432072,-2453.0,0.00012943,2]
[405999257,1771517432081,-201.77822118,0.0001296,2]
[405999258,1771517432091,-200.0,0.0001296,2]
[405999259,1771517432100,-503.55960548,0.0001296,2]
[405999260,1771517432110,-791.09059454,0.00013,2]
[405999261,1771517432119,-159.99,0.0001335,2]
[405999262,1771517432128,-210.59,0.00013426,2]
[405999263,1771517432137,-201.41552809,0.00013508,2]
[405999264,1771517432146,-4609.0,0.0001401,2]
[405999265,1771517432157,-872.7,0.00014384,2]
[405999266,1771517432167,-532.13165136,0.00014451,2]
[405999267,1771517432178,-2817.44714056,0.00014534,2]
[405999268,1771517432190,-45228.04757301,0.00014551,2]
[405999269,1771517432202,-662.1300956,0.00014551,2]
[405999270,1771517432213,-1075.43,0.00014551,2]
[405999271,1771517432228,-675.0,0.00014551,2]
[405999272,1771517432240,-951.09995283,0.00014551,2]
[405999273,1771517432251,-904.11328782,0.00014551,2]
[405999274,1771517432262,-2107.37240693,0.00014551,2]
[405999275,1771517432273,-959.06645445,0.00014551,2]
[405999276,1771517432284,-2491.59768231,0.00014551,2]
[405999277,1771517432294,-2107.28432845,0.00014551,2]
[405999279,1771517437428,-2225.31323038,0.00014551,2]
[405999280,1771517437442,-586.26957592,0.00014551,2]
[405999282,1771517437695,-262.56508405,0.00014551,2]
[405999283,1771517437707,-18680.0,0.00014551,2]
[405999285,1771517439458,-275.77490633,0.00014551,2]
[405999286,1771517439507,-919.0,0.00012943,2]
[405999287,1771517439517,-109996.14542192,0.00014551,2]
[405999288,1771517439526,-151.0,0.00014634,2]
[405999289,1771517439536,-151.0,0.00014634,2]
[405999290,1771517439547,-872.7,0.00014658,2]
[405999291,1771517439556,-770.48,0.00014932,2]
[405999292,1771517439566,-150.0,0.00014974,2]
[405999293,1771517439576,-195.97,0.00014987,2]
[405999294,1771517439586,-200.0,0.00014991,2]
[405999295,1771517439596,-1000.0,0.00014999,2]
[405999296,1771517439605,-155.0,0.00015,3]
[405999297,1771517439615,-163.0,0.00015,3]
[405999298,1771517439625,-250.0,0.00015,2]
[405999299,1771517439634,-471.14,0.00015068,2]
[405999300,1771517439644,-471.14,0.00015342,2]
[405999301,1771517439653,-35872.0,0.00015397,2]
[405999302,1771517439663,-2471.0,0.00015411,2]
[405999303,1771517439673,-471.14,0.00015616,2]
[405999304,1771517439683,-167.89,0.00015681,2]
[405999305,1771517439692,-200.0,0.00015681,2]
[405999306,1771517439702,-526.06,0.00015825,2]
[405999307,1771517439711,-195.28,0.0001589,2]
[405999308,1771517439720,-152.37105579,0.000159,2]
[405999309,1771517439730,-408.347,0.00015943,2]
[405999310,1771517439740,-1338.0,0.00015943,2]
[405999311,1771517439749,-5974.0,0.00015943,2]
[405999312,1771517439759,-2453.0,0.00015943,2]
[405999313,1771517439768,-5000.0,0.0001596,2]
[405999314,1771517439778,-7919.59,0.00016116,2]
[405999315,1771517439788,-532.1316513,0.00016244,2]
[405999316,1771517439797,-182.6,0.00016438,2]
[405999317,1771517439806,-2500.0,0.00016623,2]
[405999318,1771517439816,-500.0,0.00017,2]
[405999319,1771517439826,-500.0,0.00017,2]
[405999320,1771517439835,-300.0,0.00017,2]
[405999321,1771517439845,-516.0,0.00017,2]
[405999322,1771517439855,-195.97,0.00017461,2]
[405999323,1771517439866,-265.56589159,0.00017474,2]
[405999324,1771517439875,-387.35182664,0.00017548,2]
[405999325,1771517439885,-1000.0,0.00017548,2]
[405999326,1771517439894,-162.986,0.00017615,2]
[405999327,1771517439903,-1076.73,0.00017615,2]
[405999328,1771517439913,-1553.4644645,0.00017618,2]
[405999329,1771517439922,-1895.8721208,0.00017618,2]
[405999330,1771517439931,-4752.1704099,0.00017618,2]
[405999331,1771517439940,-721.12765535,0.00017648,2]
[405999332,1771517439950,-693.3919763,0.00017648,2]
[405999333,1771517439962,-427.0,0.00017656,2]
[405999334,1771517439972,-168.0,0.00017701,2]
[405999335,1771517439982,-719.04747942,0.00017703,2]
[405999337,1771517439992,-168.0,0.00017729,2]
[405999339,1771517440002,-427.0,0.00017737,2]
[405999341,1771517440011,-745.65223616,0.00017758,2]
[405999343,1771517440021,-168.0,0.00017769,2]
[405999346,1771517440030,-168.0,0.00017794,2]
[405999348,1771517440040,-1000.0,0.000178,2]
[405999351,1771517440050,-773.2413689,0.00017813,2]
[405999353,1771517440059,-168.0,0.0001783,2]
[405999355,1771517440068,-801.85129955,0.00017868,2]
[405999357,1771517440078,-151.0,0.00017896,2]
[405999359,1771517440087,-10172.1456,0.00017899,2]
[405999361,1771517440096,-1270.39343364,0.00017899,2]
[405999363,1771517440106,-10000.0,0.000179,2]
[405999365,1771517440115,-218.32082571,0.000179,2]
[405999367,1771517440124,-150.0,0.000179,2]
[405999369,1771517440134,-5000.0,0.000179,2]
[405999371,1771517440144,-489.75290926,0.000179,3]
[405999373,1771517440153,-8779.87872305,0.000179,2]
[405999375,1771517440162,-1364.74218088,0.000179,2]
[405999377,1771517440171,-1439.13260828,0.000179,2]
[405999379,1771517440180,-831.51979763,0.00017923,2]
[405999381,1771517440190,-862.28603014,0.00017978,2]
[405999383,1771517440200,-151.0,0.00017997,2]
[405999385,1771517440209,-500.0,0.00017998,2]
[405999387,1771517440218,-500.0,0.00017998,2]
[405999389,1771517440227,-503.03,0.00017998,2]
[405999391,1771517440236,-500.0,0.00017998,2]
[405999393,1771517440246,-771.29,0.00017998,2]
[405999395,1771517440255,-578.20924308,0.00017998,5]
[405999397,1771517440264,-584.55181104,0.00017998,5]
[405999399,1771517440274,-500.0,0.00017999,2]
[405999401,1771517440284,-500.0,0.00017999,2]
[405999403,1771517440293,-500.0,0.00017999,2]
[405999405,1771517440303,-500.0,0.00017999,2]
[405999407,1771517440313,-500.0,0.00017999,2]
[405999409,1771517440322,-500.0,0.00017999,2]
[405999411,1771517440331,-500.0,0.00017999,2]
[405999414,1771517440348,-500.0,0.00017999,2]
[405999416,1771517440358,-500.0,0.00017999,2]
[405999418,1771517440372,-500.0,0.00017999,2]
[405999420,1771517440382,-796.22,0.00017999,2]
[405999422,1771517440391,-796.22,0.00017999,2]
[405999424,1771517440401,-796.22,0.00017999,2]
[405999426,1771517440411,-796.22,0.00017999,2]
[405999433,1771517440420,-796.22,0.00017999,2]
[405999434,1771517440626,-796.22,0.00017999,2]
[405999435,1771517440636,-796.22,0.00017999,2]
[405999436,1771517440645,-796.22,0.00017999,2]
[405999437,1771517440654,-796.22,0.00017999,2]
[405999438,1771517440664,-29.31806674,0.00017999,2]
[405999439,1771517440677,-534.0,0.00017999,2]
[405999440,1771517440688,-232.90193326,0.00017999,2]
[405999441,1771517440698,-796.22,0.00017999,2]
[405999442,1771517440711,-796.22,0.00017999,2]
[405999443,1771517440721,-796.22,0.00017999,2]
[405999444,1771517440731,-796.22,0.00017999,2]
[405999445,1771517440740,-796.22,0.00017999,2]
[405999446,1771517440751,-796.22,0.00017999,2]
[405999447,1771517440760,-796.22,0.00017999,2]
[405999448,1771517440770,-796.22,0.00017999,2]
[405999449,1771517440779,-500.0,0.00017999,2]
[405999450,1771517440789,-506.96696216,0.00017999,2]
[405999451,1771517440798,-500.0,0.00017999,2]
[405999452,1771517440808,-500.0,0.00017999,2]
[405999453,1771517440817,-500.0,0.00017999,2]
[405999454,1771517440826,-500.0,0.00017999,2]
[405999455,1771517440835,-500.0,0.00017999,2]
[405999456,1771517440849,-500.0,0.00017999,2]
[405999457,1771517440858,-500.0,0.00017999,2]
[405999458,1771517440867,-500.0,0.00017999,2]
[405999459,1771517440876,-500.0,0.00017999,2]
[405999460,1771517440885,-500.0,0.00017999,2]
[405999461,1771517440894,-500.0,0.00017999,2]
[405999462,1771517440903,-500.0,0.00017999,2]
[405999463,1771517440912,-15.92937275,0.00017999,2]
[405999464,1771517440927,-378.66,0.00017999,2]
[405999465,1771517440938,-105.41062725,0.00017999,2]
[405999466,1771517440947,-276.98937274,0.00017999,2]
[405999481,1771517445432,-587.6135607,0.00015943,2]
[405999482,1771517445538,-331.3864393,0.00015943,2]
[405999483,1771517445547,-50.6735607,0.00017999,2]
[405999484,1771517445723,-172.33706656,0.00017999,2]
[405999485,1771517445732,-500.0,0.00017999,2]
[405999486,1771517445742,-500.0,0.00017999,2]
[405999487,1771517445752,-500.0,0.00017999,2]
[405999488,1771517445761,-500.0,0.00017999,2]
[405999489,1771517445774,-550.45,0.00017999,2]
[405999490,1771517445785,-550.45,0.00017999,2]
[405999491,1771517445794,-550.45,0.00017999,2]
[405999492,1771517445803,-550.45,0.00017999,2]
[405999493,1771517445812,-550.45,0.00017999,2]
[405999494,1771517445821,-550.45,0.00017999,2]
[405999495,1771517445831,-550.45,0.00017999,2]
[405999496,1771517445840,-550.45,0.00017999,2]
[405999497,1771517445849,-550.45,0.00017999,2]
[405999498,1771517445858,-550.45,0.00017999,2]
[405999499,1771517445867,-550.45,0.00017999,2]
[405999500,1771517445877,-550.45,0.00017999,2]
[405999501,1771517445887,-550.45,0.00017999,2]
[405999502,1771517445896,-550.45,0.00017999,2]
[405999503,1771517445905,-550.45,0.00017999,2]
[405999505,1771517445916,-550.45,0.00017999,2]
[405999507,1771517445924,-550.45,0.00017999,2]
[405999509,1771517445934,-550.45,0.00017999,2]
[405999511,1771517445943,-500.0,0.00017999,2]
[405999513,1771517445952,-379.20316023,0.00017999,2]
[405999515,1771517445963,-120.79683977,0.00017999,2]
[405999517,1771517445972,-500.0,0.00017999,2]
[405999519,1771517445981,-222.00682944,0.00017999,2]
[405999521,1771517445992,-277.99317056,0.00017999,2]
[405999523,1771517446002,-500.0,0.00017999,2]
[405999525,1771517446012,-500.0,0.00017999,2]
[405999528,1771517446023,-551.5931465,0.00017999,2]
[405999530,1771517446033,-1461.53,0.00017999,2]
[405999531,1771517446042,-1461.53,0.00017999,2]
[405999533,1771517446052,-1461.53,0.00017999,2]
[405999535,1771517446061,-1461.53,0.00017999,2]
[405999537,1771517446072,-1461.53,0.00017999,2]
[405999540,1771517446082,-1461.53,0.00017999,2]
[405999542,1771517446091,-1461.53,0.00017999,2]
[405999544,1771517446100,-1461.53,0.00017999,2]
[405999546,1771517446109,-1461.53,0.00017999,2]
[405999548,1771517446119,-1461.53,0.00017999,2]
[405999550,1771517446128,-1461.53,0.00017999,2]
[405999552,1771517446138,-1461.53,0.00017999,2]
[405999554,1771517446147,-1461.53,0.00017999,2]
[405999556,1771517446159,-709.73292676,0.00017999,2]
[405999612,1771517540940,500.0,0.00015,30]
[405999613,1771517542755,500.0,0.00015,30]
[405999614,1771517543253,500.0,0.00015,30]
[405999615,1771517543743,500.0,0.00015,30]
[405999814,1771518631687,-2951.92925223,8e-05,2]
[405999815,1771518631702,-292.97700002,8e-05,2]
[405999816,1771518631717,-1041.37341,8e-05,2]
[405999817,1771518631729,-961.356,8e-05,2]
[405999818,1771518631748,-2732.45838192,8e-05,2]
[405999819,1771518631758,-1200.0,8.601e-05,2]
[405999820,1771518631767,-300.0,8.602e-05,2]
[405999822,1771518631776,-450.0,8.603e-05,2]
[405999823,1771518631785,-150.0,8.603e-05,2]
[405999825,1771518631794,-500.0,8.604e-05,2]
[405999827,1771518631804,-500.0,8.604e-05,2]
[405999829,1771518631813,-506.02628144,8.604e-05,2]
[405999830,1771518631823,-149.96621285,8.604e-05,2]
[405999836,1771518637638,-350.03378715,8.604e-05,2]
[405999837,1771518637648,-500.0,8.604e-05,2]
[405999838,1771518637658,-500.0,8.604e-05,2]
[405999840,1771518637672,-448.37716465,8.604e-05,2]
[405999841,1771518637681,-500.0,8.604e-05,2]
[405999842,1771518637691,-500.0,8.604e-05,2]
[405999843,1771518637701,-500.0,8.604e-05,2]
[405999844,1771518637713,-1.8390482,8.604e-05,2]
[405999845,1771518637724,-498.1609518,8.604e-05,2]
[405999846,1771518637734,-142.77773317,8.604e-05,2]
[405999847,1771518637747,-357.22226683,8.604e-05,2]
[405999848,1771518637756,-500.0,8.604e-05,2]
[405999849,1771518637766,-162.38741444,8.604e-05,2]
[405999850,1771518637776,-500.0,8.604e-05,2]
[405999851,1771518637788,-507.18366532,9.152e-05,2]
[405999852,1771518637797,-500.0,9.152e-05,2]
[405999853,1771518637808,-503.83433081,9.152e-05,2]
[405999854,1771518637819,-500.0,9.152e-05,2]
[405999855,1771518637829,-500.0,9.152e-05,2]
[405999856,1771518637839,-500.0,9.152e-05,2]
[405999857,1771518637848,-500.0,9.152e-05,2]
[405999858,1771518637858,-500.0,9.152e-05,2]
[405999859,1771518637868,-643.72920629,9.152e-05,2]
[405999860,1771518637877,-500.0,9.152e-05,2]
[405999861,1771518637886,-116.24311631,9.152e-05,2]
[405999862,1771518637902,-255.27338,9.152e-05,2]
[405999863,1771518637914,-130.76579309,9.152e-05,2]
[405999864,1771518637923,-500.0,9.152e-05,2]
[405999865,1771518637933,-18.17707345,9.463e-05,2]
[405999866,1771518637949,-236.82292655,9.463e-05,2]
[405999867,1771518637959,-165.5826956,9.9e-05,2]
[405999868,1771518637971,-33.06492375,9.9e-05,2]
[405999869,1771518637981,-247.29523873,9.9e-05,2]
[405999870,1771518637991,-286.21333418,9.9e-05,2]
[405999871,1771518638002,-412.6971445,9.9e-05,2]
[405999873,1771518638012,-150.0,0.00011138,7]
[405999875,1771518638022,-500.0,0.00013,2]
[405999878,1771518638032,-700.0,0.00013,2]
[405999880,1771518638046,-168.47,0.0001309,2]
[405999881,1771518638055,-150.0,0.00013688,2]
[405999884,1771518638069,-150.0,0.00013688,2]
[405999886,1771518638079,-500.0,0.00013698,2]
[405999888,1771518638089,-500.0,0.00013698,2]
[405999890,1771518638099,-1696.88415848,0.00013699,2]
[405999892,1771518638111,-1869.40485892,0.00013699,2]
[405999895,1771518638127,-5842.0009826,0.00013699,2]
[405999898,1771518638136,-349.69,0.00013699,2]
[405999901,1771518638145,-6702.14,0.00013699,2]
[405999903,1771518638155,-500.0,0.00013962,2]
[405999906,1771518638165,-1275.0,0.00013963,2]
[405999909,1771518638174,-1209.0,0.00013963,2]
[405999911,1771518638183,-5974.0,0.00013963,2]
[405999914,1771518638192,-1039.0,0.00013963,2]
[405999917,1771518638201,-173.66088786,0.00014029,2]
[405999919,1771518638211,-549.74886505,0.00014496,2]
[405999921,1771518638220,-151.0,0.00014496,2]
[405999923,1771518638229,-151.0,0.00014496,2]
[405999925,1771518638238,-151.0,0.00014496,2]
[405999927,1771518638247,-151.0,0.00014496,2]
[405999929,1771518638258,-151.0,0.00014496,2]
[405999931,1771518638268,-151.0,0.00014496,2]
[405999933,1771518638277,-151.0,0.00014496,2]
[405999935,1771518638287,-151.0,0.00014496,2]
[405999937,1771518638296,-151.0,0.00014496,2]
[405999939,1771518638305,-151.0,0.00014496,2]
[405999941,1771518638314,-151.0,0.00014496,2]
[405999943,1771518638324,-166.66,0.00014737,2]
[405999945,1771518638333,-163.0,0.00015,3]
[405999947,1771518638343,-155.0,0.00015,3]
[405999949,1771518638353,-166.66,0.00015047,2]
[405999951,1771518638363,-40297.85208668,0.0001512,2]
[405999952,1771518638373,-166.66,0.00015357,2]
[405999955,1771518638383,-558.14,0.00015551,2]
[405999957,1771518638393,-163.05,0.00015613,2]
[405999959,1771518638402,-166.66,0.00015668,2]
[405999961,1771518638412,-13376.25,0.00015754,2]
[405999962,1771518638421,-166.66,0.00015978,2]
[405999964,1771518638430,-5000.0018155,0.000162,5]
[405999966,1771518638439,-166.66,0.00016288,2]
[405999968,1771518638451,-167.4,0.00016438,2]
[405999970,1771518638460,-167.28,0.00016712,2]
[405999972,1771518638471,-1209.0,0.00016963,2]
[405999975,1771518638480,-446.06859509,0.00016963,2]
[405999978,1771518638501,-500.0,8.604e-05,2]
[405999980,1771518638511,-5527.93140491,0.00016963,2]
[405999982,1771518638520,-1039.0,0.00016963,2]
[405999984,1771518638529,-500.0,0.00017,2]
[405999986,1771518638540,-500.0,0.00017,2]
[405999988,1771518638549,-516.0,0.00017,2]
[405999990,1771518638558,-450.0,0.00017137,2]
[405999992,1771518638567,-350.0,0.00017173,2]
[406000016,1771518638786,-2433.16988335,0.00017231,2]
[406000018,1771518638796,-546.5105444,0.00017231,2]
[406000020,1771518638806,-223.28080881,0.00017231,2]
[406000022,1771518638815,-350.0,0.00017319,2]
[406000024,1771518638825,-721.12765535,0.00017531,2]
[406000026,1771518638834,-693.3919763,0.00017531,2]
[406000028,1771518638844,-514.03988287,0.00017548,2]
[406000030,1771518638853,-500.0,0.00017548,2]
[406000032,1771518638863,-719.04747942,0.00017586,2]
[406000034,1771518638873,-200.0,0.000176,6]
[406000036,1771518638882,-350.0,0.00017617,2]
[406000038,1771518638891,-745.65223616,0.00017641,2]
[406000040,1771518638901,-168.0,0.0001766,2]
[406000042,1771518638910,-700.0,0.00017681,2]
[406000044,1771518638920,-168.0,0.00017686,2]
[406000046,1771518638929,-773.2413689,0.00017696,2]
[406000048,1771518638938,-4204.38800158,0.000177,2]
[406000049,1771518638948,-400.0,0.000177,6]
[406000051,1771518638959,-801.85129955,0.00017751,2]
[406000054,1771518638969,-861.384,0.000178,2]
[406000055,1771518638979,-162.986,0.000178,2]
[406000058,1771518638990,-600.0,0.000178,6]
[406000060,1771518639000,-831.51979763,0.00017806,2]
[406000062,1771518639010,-862.28603014,0.00017861,2]
[406000063,1771518639020,-168.0,0.00017872,2]
[406000066,1771518639030,-1000.0,0.00017899,2]
[406000067,1771518639041,-2500.0,0.00017899,2]
[406000070,1771518639051,-187.13213628,0.000179,2]
[406000072,1771518639061,-10000.0,0.000179,2]
[406000073,1771518639071,-2010.63916071,0.000179,2]
[406000075,1771518639081,-900.0,0.000179,6]
[406000077,1771518639090,-326.5019395,0.000179,3]
[406000079,1771518639100,-7316.56560255,0.000179,2]
[406000081,1771518639109,-5000.0,0.000179,2]
[406000083,1771518639119,-894.19061326,0.00017916,2]
[406000085,1771518639128,-1296.9491777,0.00017947,2]